Cogmind - Beta 13 @@@ ROGUE MODE // 2024.04.03 @ 16:43:33 Player: JennyB Result: Destroyed by D-53 Grenadier with Mini Grenade Launcher Performance ------------- Evolutions (1) 500 Regions Visited (4) 800 Robots Destroyed (34) 170 Value Destroyed (1040) 1040 Prototype IDs (0) 0 Alien Tech Used (0) 0 Bonus (25) 25 TOTAL SCORE: 2535 Bonus ------- Follower Combat Kills 25 Cogmind --------- Core Integrity 0/400 Matter 300/300 Energy 100/100 System Corruption 0% Temperature Cool (0) Movement Rolling (180) Ox6 Location -9/Mines Parts ------- > --- POWER (2) -------- (None) > --- PROPULSION (2) --- Armored Wheel > --- UTILITY (2) ------ Huge Storage Unit Sensor Array > --- WEAPON (3) ------- Light Assault Rifle > --- INVENTORY (25) --- Aluminum Leg Aluminum Leg Hover Unit Flight Unit Heat Sink Heat Sink Improved Heat Sink Improved Heat Sink Small Storage Unit Medium Storage Unit ECM Suite Datajack Peak State ------------ > --- POWER ------------ Backup Power I Light Nuclear Core > --- PROPULSION ------- Aluminum Leg Carbon-fiber Leg > --- UTILITY ---------- Small Storage Unit Hacking Suite > --- WEAPON ----------- Beam Rifle Light EM Pulse Cannon Light Cannon > --- INVENTORY -------- Compact Wheel Hover Unit Heat Sink Improved Heat Sink Sensor Array ECM Suite Small Laser Datajack [Rating: 18] Favorites ----------- Power Ion Engine Engine Ion Engine Power Core Light Nuclear Core Propulsion Aluminum Leg Leg Aluminum Leg Wheel Armored Wheel Hover Unit Hover Unit Utility ECM Suite Device ECM Suite Storage Huge Storage Unit Hackware Hacking Suite Weapon Light Assault Rifle Energy Gun Small Laser Energy Cannon Light EM Pulse Cannon Ballistic Gun Light Assault Rifle Ballistic Cannon Light Cannon Launcher Grenade Launcher Special Weapon Mining Laser Build | -11 -10 -10 -9 -9 ------- Run | Yrd Mat Min Mat Min Slots Evolved 2 | . . . 2 . Power 1 | . . . 1 . Propulsion . | . . . . . Utility . | . . . . . Weapon 1 | . . . 1 . Parts Attached 48 | 5 13 11 14 5 Power 5 | 1 1 1 2 . Engine 4 | 1 1 . 2 . Core 1 | . . 1 . . Reactor . | . . . . . Propulsion 11 | 2 3 2 2 2 Treads . | . . . . . Leg 7 | 2 2 2 1 . Wheel 3 | . . . 1 2 Hover 1 | . 1 . . . Flight . | . . . . . Utility 11 | . 4 1 4 2 Device 8 | . 4 1 2 1 Storage 2 | . . . 1 1 Processor . | . . . . . Hackware 1 | . . . 1 . Protection . | . . . . . Artifact . | . . . . . Weapon 21 | 2 5 7 6 1 Energy Gun 8 | . 1 2 5 . Energy Cannon 1 | . . . 1 . Ballistic Gun 5 | 2 2 . . 1 Ballistic Cannon 3 | . . 3 . . Launcher 3 | . 2 1 . . Special Weapon 1 | . . 1 . . Impact Weapon . | . . . . . Slashing Weapon . | . . . . . Piercing Weapon . | . . . . . Special Melee Weapon . | . . . . . Unidentified Prototypes . | . . . . . Parts Lost 21 | . 6 4 6 5 Power 5 | . 1 . 2 2 Propulsion 6 | . 3 1 1 1 Utility . | . . . . . Weapon 10 | . 2 3 3 2 Highest Loss Streak 6 | . 4 3 6 5 To Critical Strikes . | . . . . . Average Slot Usage (%) 89 | . 86 89 84 95 Engine 11 | . 14 8 7 22 Core 3 | . . 5 7 . Leg 17 | . 20 19 19 7 Wheel 2 | . . . . 14 Hover 5 | . 4 8 . . Device 21 | . 18 28 11 11 Storage 3 | . . . 8 11 Energy Gun 7 | . 2 2 14 22 Ballistic Gun 9 | . 22 8 . 6 Ballistic Cannon 5 | . . 7 9 . Naked Turns . | . . . . . Heaviest Build 96 | 5 11 14 22 96 Greatest Support 28 | 20 20 25 25 28 Greatest Overweight (x) 7 | . 2 3 1 7 Average Overweight (x) . | . . . . 2 Largest Inventory Capacity 25 | 5 5 5 8 25 Average Capacity 8 | 5 5 5 7 23 Most Carried 12 | 5 5 5 8 12 Average Carried 5 | 2 3 4 6 11 Final Capacity 25 | 5 5 5 8 25 Final Carried 12 | 4 3 4 7 12 Class Distribution -------------------- 51% | Mutant 41% | Scavenger-Mutant 4% | Scavenger-Skirmisher 3% | Scavenger-Gunner Dominant Class ---------------- Mutant | -10/Materials Mutant | -10/Mines Scavenger-Mutant | -9/Materials Scavenger-Mutant | -9/Mines Resources | -11 -10 -10 -9 -9 ----------- Run | Yrd Mat Min Mat Min Matter Collected 929 | 260 131 221 260 57 Remotely . | . . . . . Salvage Created 1181 | 49 286 221 559 66 Parts 62 | 1 12 10 34 5 Haulers Intercepted . | . . . . . Recyclers Shooed . | . . . . . Parts Field Recycled . | . . . . . Retrieved Matter . | . . . . . Parts Self-Destructed . | . . . . . Prevented . | . . . . . Kills | -11 -10 -10 -9 -9 ------- Run | Yrd Mat Min Mat Min Combat Hostiles Destroyed 28 | 1 8 5 10 4 Guns 16 | 1 3 2 6 4 Cannons 6 | . . 2 4 . AOE 6 | . 5 1 . . Classes Destroyed 8 | 1 1 2 3 1 Tunneler 1 | . . 1 . . Recycler 1 | . . . 1 . Mechanic 1 | . . 1 . . Operator 1 | . . . 1 . Watcher 2 | . 1 . 1 . Swarmer 4 | . . . . 4 Grunt 22 | 1 8 5 8 . Sentry 2 | . . . 2 . Best Kill Streak 6 | 1 3 6 4 3 Combat Bots Only 4 | 1 2 4 4 3 Max Kills in Single Turn 3 | 1 2 3 2 1 Gunslinging . | . . . . . Exploded 1 | . 1 1 . . Melee . | . . . . . Uniques/NPCs Destroyed . | . . . . . Combat | -11 -10 -10 -9 -9 -------- Run | Yrd Mat Min Mat Min Hostile Shots Fired 193 | 5 74 20 73 21 Missed 57 | 3 26 8 16 4 Damage Taken 2037 | 21 687 151 754 424 Core 560 | . 140 11 238 171 Absorbed by Shields . | . . . . . Regen/Repaired (Parts) 8 | . . . 8 . Core Remaining (%) 69 | 100 . 39 . . Volleys Fired 103 | 5 38 10 37 13 Largest 3 | 2 2 2 3 2 Hottest 152 | 40 60 75 152 60 Shots Fired 183 | 10 72 13 68 20 Gun 142 | 10 65 7 40 20 Cannon 33 | . . 5 28 . Launcher 8 | . 7 1 . . Special . | . . . . . Kinetic 103 | 10 58 9 19 7 Thermal 53 | . . . 40 13 Explosive 8 | . 7 1 . . Electromagnetic 19 | . 7 3 9 . Robot Hit Streak 9 | 6 6 4 9 3 Robot Miss Streak 8 | 1 8 1 5 5 Penetration Max . | . . . . . Secondary Targets 1 | . . . 1 . Max Gunslinging Chain 1 | . . . 1 . Shots Hit Robots 99 | 7 41 9 33 9 Core Hits 62 | 3 23 12 19 5 Critical Kills . | . . . . . Critical Parts Destroyed 1 | . . . . 1 Critical Strikes 2 | . . . 1 1 Burn 1 | . . . 1 . Destroy 1 | . . . . 1 Melee Attacks . | . . . . . Impact . | . . . . . Slashing . | . . . . . Piercing . | . . . . . Sneak Attacks . | . . . . . Combat Hostiles . | . . . . . Follow-up Attacks . | . . . . . Damage Inflicted 1864 | 58 835 294 583 94 Guns 773 | 58 307 48 271 89 Cannons 377 | . . 66 311 . Explosions 708 | . 528 180 . . Melee . | . . . . . Ramming 6 | . . . 1 5 Kinetic 615 | 58 255 89 180 33 Thermal 408 | . 81 . 271 56 Explosive 627 | . 447 180 . . Electromagnetic 208 | . 52 25 131 . Impact . | . . . . . Slashing . | . . . . . Piercing . | . . . . . Highest Corruption . | . . . . . Average Corruption . | . . . . . Corruption Purged . | . . . . . Corruption Blocked . | . . . . . Overload Shots . | . . . . . Overflow Damage 7 | . 7 . . . Projectiles . | . . . . . Explosions 7 | . 7 . . . Melee . | . . . . . Knockbacks . | . . . . . Impact . | . . . . . Kinetic . | . . . . . Secondary . | . . . . . Self-Inflicted Damage 39 | . 37 . . 2 Shots 1 | . 1 . . . Rammed 1 | . . . . 1 Targets Rammed 2 | . . . 1 1 Kicked 1 | . . . 1 . Crushed . | . . . . . Highest Temperature 535 | 6 48 9 535 30 Average Temperature 123 | 6 10 3 208 13 Received Heat Transfer 813 | 12 336 87 378 . Effects 6 | . . . 6 . Shutdowns 2 | . . . 2 . Energy Bleed 1 | . . . 1 . Matter Decay 2 | . . . 2 . Short Circuit 1 | . . . 1 . Siege Activations . | . . . . . Robots Corrupted . | . . . . . Combat Hostiles . | . . . . . Parts Fried . | . . . . . Impact Corruptions . | . . . . . Robots Melted . | . . . . . Combat Hostiles . | . . . . . Parts Melted . | . . . . . Heat Transferred 1007 | . 150 . 732 125 Parts Sabotaged . | . . . . . Parts Stolen . | . . . . . Parts Stripped . | . . . . . Power Chain Reactions 1 | . 1 . . . Alert | -11 -10 -10 -9 -9 ------- Run | Yrd Mat Min Mat Min Peak Influence 252 | 20 183 100 252 217 Initial 97 | . 13 39 . 97 Average 69 | 2 102 23 111 158 Maximum Alert Level 1 | . . . 1 1 Low Security (%) 93 | 100 100 100 77 81 Level 1 6 | . . . 22 18 Level 2 . | . . . . . Level 3 . | . . . . . Level 4 . | . . . . . Level 5 . | . . . . . High Security . | . . . . . Max Security . | . . . . . Squads Dispatched 5 | . 3 1 1 . Investigation 3 | . 2 . 1 . Extermination . | . . . . . Reinforcement 1 | . 1 . . . Assault 1 | . . 1 . . Garrison . | . . . . . Intercept . | . . . . . Searches Triggered . | . . . . . Construction Impeded . | . . . . . Haulers Reinforced . | . . . . . Active Scanning Responses . | . . . . . Cargo Convoy Interrupts . | . . . . . Stealth | -11 -10 -10 -9 -9 --------- Run | Yrd Mat Min Mat Min Distress Signals 6 | . 3 . 3 . Communications Jammed . | . . . . . Distress Signals . | . . . . . Times Spotted 60 | 1 19 5 17 18 Peak Tracking Total 11 | 1 5 4 6 11 Tactical Retreats 5 | . 2 . 1 2 Traps | -11 -10 -10 -9 -9 ------- Run | Yrd Mat Min Mat Min Traps Triggered 2 | . 2 . . . Indirectly . | . . . . . Trap Hack Attempts . | . . . . . Triggered . | . . . . . Disarmed 4 | . . . 4 . Reprogrammed . | . . . . . Reused . | . . . . . Traps Extracted . | . . . . . Installed . | . . . . . Triggered . | . . . . . Machines | -11 -10 -10 -9 -9 ---------- Run | Yrd Mat Min Mat Min Machines Disabled 1 | . 1 . . . Max in Single Turn 1 | . 1 . . . Machines Repaired . | . . . . . Machines Dismantled . | . . . . . Machines Sabotaged . | . . . . . Overloaded Fab Kills . | . . . . . Hacking | -11 -10 -10 -9 -9 --------- Run | Yrd Mat Min Mat Min Machines Accessed 5 | . 2 . 2 1 Terminals 3 | . 1 . 1 1 Fabricators . | . . . . . Repair Stations 1 | . . . 1 . Recycling Units 1 | . 1 . . . Scanalyzers . | . . . . . Garrison Access . | . . . . . Total Hacks 19 | . 6 . 9 4 Successful 12 | . 4 . 6 2 Failed 6 | . 2 . 2 2 Catastrophic 2 | . 1 . 1 . Database Lockouts 1 | . . . 1 . Manual . | . . . . . Terminals 12 | . 3 . 5 4 Fabricators . | . . . . . Repair Stations 4 | . . . 4 . Recycling Units 3 | . 3 . . . Scanalyzers . | . . . . . Garrison Access . | . . . . . Terminal Hacks 7 | . 2 . 3 2 Record 3 | . . . 2 1 Alert Level 1 | . 1 . . . Unreport Threat 1 | . 1 . . . Disarm Traps 1 | . . . 1 . Zone Layout 1 | . . . . 1 Fabricator Hacks . | . . . . . Repair Station Hacks 3 | . . . 3 . Scan Component 1 | . . . 1 . Repair 1 | . . . 1 . Refit 1 | . . . 1 . Recycling Unit Hacks 2 | . 2 . . . Process 1 | . 1 . . . Retrieve Components 1 | . 1 . . . Scanalyzer . | . . . . . Garrison Access Hacks . | . . . . . Unauthorized Hacks . | . . . . . Terminals . | . . . . . Fabricators . | . . . . . Repair Stations . | . . . . . Recycling Units . | . . . . . Scanalyzers . | . . . . . Garrison Access . | . . . . . Data Cores Recovered 1 | . . . 1 . Used . | . . . . . Hacking Detections 2 | . 1 . 1 . Full Trace Events 2 | . 1 . 1 . Feedback Events . | . . . . . Feedback Blocked . | . . . . . Robot Schematics Acquired . | . . . . . Robots Built . | . . . . . Authchips . | . . . . . Time . | . . . . . Total Robot Build Rating . | . . . . . Part Schematics Acquired . | . . . . . Parts Built . | . . . . . Authchips . | . . . . . Time . | . . . . . Total Part Build Rating . | . . . . . Parts Repaired 1 | . . . 1 . Time 32 | . . . 32 . Parts Recycled . | . . . . . Recycled Matter 60 | . 60 . . . Retrieved Matter . | . . . . . Retrieved Components . | . . . . . Parts Scanalyzed . | . . . . . Part Schematics Acquired . | . . . . . Parts Damaged . | . . . . . Bothacking | -11 -10 -10 -9 -9 ------------ Run | Yrd Mat Min Mat Min Used RIF Installer . | . . . . . Robots Hacked . | . . . . . Non-combat . | . . . . . Combat . | . . . . . Robot Hacks Applied . | . . . . . Relay Couplers Released . | . . . . . Fabnet Peak Effective % . | . . . . . Robots Rewired . | . . . . . Allies Hacked . | . . . . . Hacks Repelled . | . . . . . Allies | -11 -10 -10 -9 -9 -------- Run | Yrd Mat Min Mat Min Total Allies 1 | . . 1 . . Largest Group 1 | . . 1 . . Highest-Rated Group 31 | . . 31 . . Highest-Rated Ally 31 | . . 31 . . Total Orders . | . . . . . Ally Attacks 8 | . . 8 . . Total Damage 146 | . . 146 . . Kills 1 | . . 1 . . Allies Corrupted . | . . . . . Allies Melted . | . . . . . Intel | -11 -10 -10 -9 -9 ------- Run | Yrd Mat Min Mat Min Robot Analysis Total . | . . . . . Derelict Logs Recovered 5 | . . 3 . 2 Drone Launches . | . . . . . Drone Recoveries . | . . . . . Exploration | -11 -10 -10 -9 -9 ------------- Run | Yrd Mat Min Mat Min Turns Passed 2146 | 107 340 1054 284 361 Spaces Moved 1350 | 82 174 776 122 196 Core 27 | 25 1 1 . . Treads . | . . . . . Legs 634 | 57 121 287 120 49 Wheels 149 | . . . 2 147 Hover 540 | . 52 488 . . Flight . | . . . . . Fastest Speed 50 | 50 120 120 115 120 Average Speed 129 | 98 123 126 123 160 Slowest Speed 400 | 120 190 200 190 400 Overloaded Moves . | . . . . . Propulsion Burnouts . | . . . . . Robots Hopped . | . . . . . Cave-ins Triggered . | . . . . . Exploration Rate (%) 37 | 5 40 96 16 31 Regions Visited 4 Branch Regions 2 Pre-discovered Areas 1 | . . 1 . . Known Exits Taken . | . . . . . Unknown Exits Taken 4 | 1 1 1 1 . Scrap Searched 3 | . . 2 . 1 Spaces Dug . | . . . . . Terrain Destroyed 39 | . 32 7 . . Melee . | . . . . . Projectile . | . . . . . AOE 39 | . 32 7 . . Terrain Rammed . | . . . . . Walls Destroyed . | . . . . . Machines Disabled . | . . . . . Actions | -11 -10 -10 -9 -9 --------- Run | Yrd Mat Min Mat Min Total 1588 | 100 238 837 192 221 Wait 27 | . . 27 . . Move 1346 | 81 173 775 121 196 Hop . | . . . . . Pick Up 50 | 9 10 10 15 6 Fast Attach . | . . . . . Attach 28 | 5 7 7 8 1 Detach . | . . . . . Swap 20 | . 6 4 6 4 Drop 12 | . 4 4 4 . Fire 103 | 5 38 10 37 13 Melee . | . . . . . Ram 1 | . . . . 1 Kick 1 | . . . 1 . Crush . | . . . . . Escape Stasis . | . . . . . Rewire . | . . . . . Trap . | . . . . . Miscellaneous . | . . . . . Route ------- -11/Scrapyard -10/Materials -10/Mines (discovered 2 exits: *Mat x2) -9/Materials (discovered 2 exits: Mat / *Min) -9/Mines History --------- Turn | Location | Event 2 | -11/Scrapyard | Met Revision 17 58 | -11/Scrapyard | Discovered new exit (range 8) 108 | -11/Scrapyard | Entered Materials 318 | -10/Materials | Build established: Mutant 318 | -10/Materials | Lost 4 parts (1p2n1w) 425 | -10/Materials | Discovered new exit (range 12) 448 | -10/Materials | Core integrity fell below 50% 448 | -10/Materials | Entered Mines 729 | -10/Mines | Learned Materials garrison access intel 750 | -10/Mines | Learned 2 Materials zone layouts 767 | -10/Mines | Learned 4 Materials zone layouts 768 | -10/Mines | Met a Derelict testing a Signal Generator 1013 | -10/Mines | Learned location of Storage (-7) 1247 | -10/Mines | Lost 3 parts (3w) 1258 | -10/Mines | Discovered new exit (range 16) 1397 | -10/Mines | Build established: Scavenger-Mutant 1463 | -10/Mines | Discovered new exit (range 6) 1502 | -10/Mines | Entered Materials 1502 | -9/Materials | Evolved 2 slots: Power x1, Weapon x1 1503 | -9/Materials | Identified exit to Materials 1637 | -9/Materials | Repaired Beam Rifle? 1655 | -9/Materials | Central database locked down 1663 | -9/Materials | Discovered new exit (range 8) 1747 | -9/Materials | Core integrity fell below 50% 1754 | -9/Materials | Lost 6 parts (2p1n3w) 1786 | -9/Materials | Entered Mines 1817 | -9/Mines | Learned Materials emergency access door positions 1892 | -9/Mines | Learned Materials terminal intel 2113 | -9/Mines | Assembled infested the area 2118 | -9/Mines | Assisted by a Guerilla fighting off Assembled 2141 | -9/Mines | Core integrity fell below 20% 2147 | -9/Mines | Destroyed by D-53 Grenadier with Mini Grenade Launcher Last Messages --------------- Com. Wheel destroyed. R-06 Scavenger destroyed. as-44688 destroyed. as-51900 destroyed. as-35159 destroyed. The unstable cave ceiling collapses. U-05 Engineer lays Concrete. U-05 Engineer builds a Wall. The unstable cave ceiling collapses. Broken Beam Rifle destroyed. Sml. Laser destroyed. Ion Engine destroyed. as-75327 destroyed. as-76101 destroyed. as-66846 destroyed. The unstable cave ceiling collapses. U-05 Engineer lays Concrete. The unstable cave ceiling collapses. Ion Engine destroyed. [Achievement: First Step to Greatness] Map ----- +----------------------------------------------------+ | ?????????????????????????????????????????????????? | | ?????????????????????????????????????????????????? | | ?????????????????????????????????????????????????? | | ?????????????????????????????????????????????????? | | ?????????????????????????????????????????????????? | | ?????????????????????????????????????????????????? | | ?????????????????????????????????????????????????? | | ?????????????????????????????????????????????????? | | ?????????????????????????????????????????????????? | | ?????????????????????????????????????????????????? | | ????????????????????????????? ???????????????????? | | ????????????????????????????? ???????????????????? | | ????????????????????????????? ???????????????????? | | ????????????????????????????? ???????????????????? | | ????????????????????????????? ??????????#????????? | | ????????????????????????????? #???????? #????????? | | ?????????????????????????###? ##?????? #????????? | | ????????????????????????? ? ?r #?##### #????????? | | ???????????????????????###### ### ?????????? | | ?????????????????????### ## ???????????? | | ????????????????????## d # #????????????? | | ????????????????????# % ## #????????????? | | ?????????????????????# d u ##???????????? | | ??????????????????????# = # ## #?????????### | | ???????????# ## ## #????????? | | ????????????# @ ## #????????? | | ?????????????# ### ##????????? | | ?????????????##[%= ## #% #### #??????????? | | ??????????????##=%[|?# #a ##??# %##?????????? | | ???????????????#=% ? a?%a #???# ####??????? | | ?????????????? *% ?!## ? #???### ##?????? | | ?????????????####? ??#??# ##?????## ######## | | ?????????????????#??????###???????## | | ???????????????????????????????????# ######## | | ??????????????????????????????????# #??????# | | ?????????????????????????????????# #????### | | ????????????????????????????????# ##????# | | ????????????????????????????????# ##?????# # | | ????????????????????????????????## ##??????# # | | ?????????????????????????????????## ##???????# # | | ??????????????????????????????????####????????# # | | ??????????????????????????????????????????????# # | | ??????????????????????????????????????????????# | | ?????????????????????????????????????????????## | | ????????????????????????????????????????????## | | ???????????????????????????????????????????## | | ???????????????????????????????????????????# ### | | ??????????????????????????????????????????## ##?# | | ?????????????????????????????????????????## ##??? | | ????????????????????????????????????????## #???? | +----------------------------------------------------+ Best States ------------- Heat Dissipation 45 Energy Generation 18 Energy Capacity 400 Matter Stores 300 Matter Capacity 300 Sight Range 16 Robot Scan Range 14 Terrain Scan Density 10 ECM Strength 2 Evasion (%) 55 Offensive Hacking 10 Item Schematics ----------------- None Robot Schematics ------------------ None Fabricated ------------ Nothing Alien Tech Used ----------------- None Achievements -------------- Everything Is Under Control First Step to Greatness One Hack Too Far Part-time Mechanic Storm Trooper Uninvited Guest Challenges ------------ None Game ------ Seed SensorLinkedProtection Manual? 0 Play Time 00:42:37 Cumulative 0.6 hours Start 2024.04.03 @ 10:12:56 End 2024.04.03 @ 16:43:33 Sessions 3 Manual Loads 0 Difficulty Rogue Special Mode None Game No. 1 Rogue 1 Adventurer 0 Explorer 0 Win Type - Total 0 Types 0/0/0/0/0/0/0/0/0 Lore% 0 Gallery% 2 Achievement% 2 Wizard Run 0 Options --------- Layout 1 ASCII 0 Keyboard 0 Movement Mouse Keybinds 0 Fullscreen 1 Font 48/Smallcaps Map View 50x35 Zoom Use 0% Tactical HUD 0 Map Filters NONE Filters NONE Steam 1 RUN: 3ead5e85-a3d2-4772-9749-28cddc629d45